[Event "NJSK 2022 Jeugd A"]
[Site "Almelo, Netherlands"]
[Date "2022.05.02"]
[Round "2.4"]
[White "Klaren, Duncan"]
[Black "Van Foreest, Machteld"]
[Result "0-1"]
[TimeControl "90min/40moves + 30min + 30sec/move"]
[WhiteElo "1916"]
[BlackElo "2287"]

1. d4 {[%clk 01:30:55]} {[%emt 00:00:04]} d5 {[%clk 01:30:03]} {[%emt
00:00:58]} 2. Nf3 {[%clk 01:31:17]} {[%emt 00:00:07]} Nf6 {[%clk 01:30:19]}
{[%emt 00:00:13]} 3. g3 {[%clk 01:31:39]} {[%emt 00:00:08]} e6 {[%clk
01:28:13]} {[%emt 00:02:37]} 4. Bg2 {[%clk 01:31:51]} {[%emt 00:00:18]} Be7
{[%clk 01:28:21]} {[%emt 00:00:22]} 5. O-O {[%clk 01:31:58]} {[%emt 00:00:23]}
O-O {[%clk 01:27:34]} {[%emt 00:01:17]} 6. c4 {[%clk 01:32:16]} {[%emt
00:00:12]} c6 {[%clk 01:26:57]} {[%emt 00:01:07]} 7. Qc2 {[%clk 01:32:06]}
{[%emt 00:00:40]} b6 {[%clk 01:26:36]} {[%emt 00:00:52]} 8. Nbd2 {[%clk
01:32:21]} {[%emt 00:00:14]} Bb7 {[%clk 01:24:23]} {[%emt 00:02:42]} 9. e4
{[%clk 01:31:57]} {[%emt 00:00:54]} c5 {[%clk 01:19:06]} {[%emt 00:05:48]} 10.
Rd1 {[%clk 01:15:59]} {[%emt 00:16:28]} dxe4 {[%clk 01:13:23]} {[%emt
00:06:13]} 11. Ng5 {[%clk 01:08:34]} {[%emt 00:07:55]} Nc6 {[%clk 01:06:29]}
{[%emt 00:07:24]} 12. dxc5 {[%clk 00:52:22]} {[%emt 00:16:42]} Nd4 {[%clk
01:03:57]} {[%emt 00:03:02]} 13. Qb1 {[%clk 00:49:54]} {[%emt 00:02:58]} Bxc5
{[%clk 00:48:19]} {[%emt 00:16:09]} 14. Ngxe4 {[%clk 00:37:20]} {[%emt
00:13:03]} Ne2+ {[%clk 00:45:09]} {[%emt 00:03:41]} 15. Kh1 {[%clk 00:28:57]}
{[%emt 00:08:52]} Nxe4 {[%clk 00:36:20]} {[%emt 00:09:18]} 16. Bxe4 {[%clk
00:28:56]} {[%emt 00:00:30]} Bxe4+ {[%clk 00:29:41]} {[%emt 00:07:11]} 17. Qxe4
{[%clk 00:29:06]} {[%emt 00:00:20]} Nxc1 {[%clk 00:30:00]} {[%emt 00:00:12]} 18.
Raxc1 {[%clk 00:29:02]} {[%emt 00:00:33]} Qf6 {[%clk 00:28:42]} {[%emt
00:01:48]} 19. Nf3 {[%clk 00:18:03]} {[%emt 00:11:29]} Rad8 {[%clk 00:24:35]}
{[%emt 00:04:37]} 20. Qe2 {[%clk 00:17:04]} {[%emt 00:01:29]} h6 {[%clk
00:24:12]} {[%emt 00:00:53]} 21. Kg2 {[%clk 00:17:07]} {[%emt 00:00:28]} Qf5
{[%clk 00:21:52]} {[%emt 00:02:49]} 22. a3 {[%clk 00:15:01]} {[%emt 00:02:37]}
a5 {[%clk 00:22:11]} {[%emt 00:00:11]} 23. Ne5 {[%clk 00:13:14]} {[%emt
00:02:16]} Rd4 {[%clk 00:18:51]} {[%emt 00:03:50]} 24. Nc6 {[%clk 00:07:59]}
{[%emt 00:05:45]} Rxd1 {[%clk 00:15:58]} {[%emt 00:03:23]} 25. Rxd1 {[%clk
00:08:24]} {[%emt 00:00:05]} Rc8 {[%clk 00:15:33]} {[%emt 00:00:55]} 26. Nd4
{[%clk 00:08:15]} {[%emt 00:00:39]} Qf6 {[%clk 00:14:52]} {[%emt 00:01:11]} 27.
Nb3 {[%clk 00:06:44]} {[%emt 00:02:00]} Be7 {[%clk 00:14:43]} {[%emt 00:00:40]}
28. Nd4 {[%clk 00:05:49]} {[%emt 00:01:25]} Bc5 {[%clk 00:12:44]} {[%emt
00:02:29]} 29. Nb3 {[%clk 00:04:53]} {[%emt 00:01:26]} Bf8 {[%clk 00:13:08]}
{[%emt 00:00:05]} 30. Rc1 {[%clk 00:04:31]} {[%emt 00:00:52]} a4 {[%clk
00:12:43]} {[%emt 00:00:56]} 31. Na1 {[%clk 00:03:56]} {[%emt 00:01:04]} b5
{[%clk 00:13:04]} {[%emt 00:00:10]} 32. Rc3 {[%clk 00:03:05]} {[%emt 00:01:21]}
Rxc4 {[%clk 00:12:08]} {[%emt 00:01:26]} 33. Rxc4 {[%clk 00:02:44]} {[%emt
00:00:51]} bxc4 {[%clk 00:12:36]} {[%emt 00:00:01]} 34. Qc2 {[%clk 00:01:51]}
{[%emt 00:01:23]} Bxa3 {[%clk 00:11:38]} {[%emt 00:01:28]} 35. bxa3 {[%clk
00:02:17]} {[%emt 00:00:04]} Qxa1 {[%clk 00:12:04]} {[%emt 00:00:05]} 36. Qxa4
{[%clk 00:02:38]} {[%emt 00:00:09]} c3 {[%clk 00:12:17]} {[%emt 00:00:17]} 37.
Qa8+ {[%clk 00:02:02]} {[%emt 00:01:07]} Kh7 {[%clk 00:12:40]} {[%emt
00:00:06]} 38. Qe4+ {[%clk 00:01:44]} {[%emt 00:00:48]} g6 {[%clk 00:13:06]}
{[%emt 00:00:05]} 39. Qf4 {[%clk 00:01:25]} {[%emt 00:00:48]} c2 {[%clk
00:12:08]} {[%emt 00:01:28]} 40. Qxf7+ {[%clk 00:01:45]} {[%emt 00:00:10]} Qg7
{[%clk 00:12:36]} {[%emt 00:00:02]} 41. Qf4 {[%clk 00:02:00]} {[%emt 00:00:14]}
Qd7 {[%clk 00:09:50]} {[%emt 00:03:17]} 42. f3 {[%clk 00:27:06]} {[%emt
00:05:23]} Kg7 {[%clk 00:34:36]} {[%emt 00:05:44]} 43. Qe5+ {[%clk 00:25:27]}
{[%emt 00:02:10]} Kg8 {[%clk 00:34:55]} {[%emt 00:00:11]} 44. Qb8+ {[%clk
00:25:12]} {[%emt 00:00:44]} Kf7 {[%clk 00:35:15]} {[%emt 00:00:10]} 45. Qf4+
{[%clk 00:25:37]} {[%emt 00:00:06]} Ke7 {[%clk 00:34:12]} {[%emt 00:01:33]} 46.
Qb4+ {[%clk 00:22:46]} {[%emt 00:03:20]} Qd6 {[%clk 00:32:51]} {[%emt
00:01:51]} 47. Qb7+ {[%clk 00:22:38]} {[%emt 00:00:38]} Kd8 {[%clk 00:33:14]}
{[%emt 00:00:07]} 48. Qa8+ {[%clk 00:22:25]} {[%emt 00:00:43]} Kd7 {[%clk
00:33:40]} {[%emt 00:00:05]} 49. Qa7+ {[%clk 00:22:14]} {[%emt 00:00:40]} Qc7
{[%clk 00:34:02]} {[%emt 00:00:08]} 50. Qd4+ {[%clk 00:22:16]} {[%emt
00:00:28]} Kc8 {[%clk 00:33:31]} {[%emt 00:01:01]} 51. Qh8+ {[%clk 00:22:40]}
{[%emt 00:00:07]} Kb7 {[%clk 00:33:46]} {[%emt 00:00:15]} 52. Qb2+ {[%clk
00:23:03]} {[%emt 00:00:05]} Ka6 {[%clk 00:34:07]} {[%emt 00:00:12]} 53. Qc1
{[%clk 00:23:16]} {[%emt 00:00:16]} Qc3 {[%clk 00:33:43]} {[%emt 00:00:54]} 54.
Kf2 {[%clk 00:23:00]} {[%emt 00:00:46]} Ka5 {[%clk 00:33:05]} {[%emt 00:01:08]}
55. Ke2 {[%clk 00:22:19]} {[%emt 00:01:11]} Ka4 {[%clk 00:32:38]} {[%emt
00:00:57]} 56. f4 {[%clk 00:21:11]} {[%emt 00:01:37]} Kb3 {[%emt 00:00:18]} 57.
g4 {[%clk 00:20:19]} {[%emt 00:01:21]} Qc4+ {[%clk 00:32:20]} {[%emt 00:01:01]}
58. Ke3 {[%clk 00:19:40]} {[%emt 00:01:10]} g5 {[%clk 00:32:45]} {[%emt
00:00:04]} 59. fxg5 {[%clk 00:19:01]} {[%emt 00:01:09]} hxg5 {[%clk 00:33:09]}
{[%emt 00:00:07]} 0-1

[Event "NJSK 2022 Jeugd A"]
[Site "Almelo, Netherlands"]
[Date "2022.05.02"]
[Round "2.5"]
[White "Hubers, Daan"]
[Black "Van Dam, Thijs"]
[Result "0-1"]
[TimeControl "90min/40moves + 30min + 30sec/move"]
[WhiteElo "1818"]
[BlackElo "1903"]

1. d4 {[%clk 01:30:51]} {[%emt 00:00:08]} Nf6 {[%clk 01:29:58]} {[%emt
00:01:02]} 2. Nf3 {[%clk 01:31:08]} {[%emt 00:00:13]} d5 {[%clk 01:29:31]}
{[%emt 00:00:57]} 3. c3 {[%clk 01:31:03]} {[%emt 00:00:35]} c5 {[%clk
01:27:09]} {[%emt 00:02:52]} 4. dxc5 {[%clk 01:26:19]} {[%emt 00:05:14]} e6
{[%clk 01:26:17]} {[%emt 00:01:23]} 5. b4 {[%clk 01:24:40]} {[%emt 00:02:09]}
a5 {[%clk 01:26:03]} {[%emt 00:00:43]} 6. Be3 {[%clk 01:04:46]} {[%emt
00:20:24]} b6 {[%clk 01:17:31]} {[%emt 00:09:02]} 7. cxb6 {[%clk 00:50:18]}
{[%emt 00:14:58]} axb4 {[%clk 01:16:45]} {[%emt 00:01:16]} 8. Qb3 {[%clk
00:43:04]} {[%emt 00:07:44]} Nc6 {[%clk 01:09:28]} {[%emt 00:07:47]} 9. Nd4
{[%clk 00:34:03]} {[%emt 00:09:31]} Nxd4 {[%clk 01:03:28]} {[%emt 00:06:30]} 10.
Bxd4 {[%clk 00:34:19]} {[%emt 00:00:14]} Nd7 {[%clk 01:03:26]} {[%emt
00:00:32]} 11. cxb4 {[%clk 00:31:22]} {[%emt 00:03:28]} Bb7 {[%clk 00:48:11]}
{[%emt 00:15:44]} 12. e3 {[%clk 00:27:48]} {[%emt 00:04:03]} e5 {[%clk
00:42:28]} {[%emt 00:06:15]} 13. Bc5 {[%clk 00:20:29]} {[%emt 00:07:48]} Nxc5
{[%clk 00:39:44]} {[%emt 00:03:14]} 14. bxc5 {[%clk 00:20:52]} {[%emt
00:00:07]} Bc6 {[%clk 00:30:56]} {[%emt 00:09:19]} 15. Nd2 {[%clk 00:14:33]}
{[%emt 00:06:49]} Ra5 {[%clk 00:23:02]} {[%emt 00:08:24]} 16. Qc3 {[%clk
00:13:57]} {[%emt 00:01:05]} Rxc5 {[%clk 00:22:59]} {[%emt 00:00:33]} 17. Qxe5+
{[%clk 00:14:19]} {[%emt 00:00:07]} Be7 {[%clk 00:23:09]} {[%emt 00:00:20]} 18.
Rb1 {[%clk 00:08:11]} {[%emt 00:06:39]} O-O {[%clk 00:20:27]} {[%emt 00:03:12]}
19. Bd3 {[%clk 00:07:54]} {[%emt 00:00:47]} Re8 {[%clk 00:18:47]} {[%emt
00:02:10]} 20. Qg3 {[%clk 00:06:11]} {[%emt 00:02:12]} d4 {[%clk 00:18:17]}
{[%emt 00:01:01]} 21. e4 {[%clk 00:05:51]} {[%emt 00:00:50]} Rc3 {[%clk
00:17:51]} {[%emt 00:00:56]} 22. O-O {[%clk 00:05:19]} {[%emt 00:01:02]} Bd6
{[%clk 00:16:51]} {[%emt 00:01:30]} 23. Qh3 {[%clk 00:04:07]} {[%emt 00:01:42]}
Re6 {[%clk 00:16:28]} {[%emt 00:00:53]} 24. f4 {[%clk 00:03:04]} {[%emt
00:01:33]} Bb8 {[%clk 00:09:19]} {[%emt 00:07:39]} 25. b7 {[%clk 00:02:28]}
{[%emt 00:01:07]} Qc7 {[%clk 00:08:52]} {[%emt 00:00:56]} 26. e5 {[%clk
00:02:28]} {[%emt 00:00:31]} Kf8 {[%clk 00:07:15]} {[%emt 00:02:06]} 27. Qxh7
{[%clk 00:01:50]} {[%emt 00:01:08]} Rh6 {[%clk 00:06:46]} {[%emt 00:00:58]} 28.
Qf5 {[%clk 00:02:12]} {[%emt 00:00:08]} Bxb7 {[%clk 00:06:39]} {[%emt
00:00:37]} 29. Be4 {[%clk 00:02:09]} {[%emt 00:00:34]} Bc8 {[%clk 00:06:21]}
{[%emt 00:00:48]} 30. Qg5 {[%clk 00:02:14]} {[%emt 00:00:24]} Ba7 {[%clk
00:05:51]} {[%emt 00:01:01]} 31. Rb3 {[%clk 00:00:48]} {[%emt 00:01:56]} Rc1
{[%clk 00:02:36]} {[%emt 00:03:45]} 32. Rb1 {[%clk 00:01:17]} {[%emt 00:00:01]}
Rc3 {[%clk 00:02:43]} {[%emt 00:00:23]} 33. Bf5 {[%clk 00:01:23]} {[%emt
00:00:24]} Bc5 {[%clk 00:01:58]} {[%emt 00:01:15]} 34. Bxc8 {[%clk 00:00:57]}
{[%emt 00:00:56]} Qxc8 {[%clk 00:02:26]} {[%emt 00:00:02]} 35. Ne4 {[%clk
00:01:09]} {[%emt 00:00:18]} Be7 {[%clk 00:02:27]} {[%emt 00:00:29]} 36. Qxh6
{[%clk 00:00:38]} {[%emt 00:01:01]} gxh6 {[%clk 00:02:49]} {[%emt 00:00:07]} 37.
Nxc3 {[%clk 00:01:04]} {[%emt 00:00:05]} Qxc3 {[%clk 00:02:59]} {[%emt
00:00:20]} 38. Rb3 {[%clk 00:01:06]} {[%emt 00:00:28]} Qc2 {[%clk 00:03:12]}
{[%emt 00:00:17]} 39. Rff3 {[%clk 00:00:39]} {[%emt 00:00:57]} Bc5 {[%clk
00:02:24]} {[%emt 00:01:18]} 40. h3 {[%clk 00:00:33]} {[%emt 00:00:36]} d3+
{[%clk 00:02:32]} {[%emt 00:00:21]} 41. Kh2 {[%clk 00:00:59]} {[%emt 00:00:04]}
d2 {[%clk 00:02:18]} {[%emt 00:00:45]} 42. Rfd3 {[%clk 00:27:41]} {[%emt
00:03:48]} d1=Q {[%clk 00:32:33]} {[%emt 00:00:14]} 43. Rb8+ {[%clk 00:28:07]}
{[%emt 00:00:04]} Kg7 {[%clk 00:32:35]} {[%emt 00:00:29]} 44. Rg3+ {[%clk
00:28:28]} {[%emt 00:00:09]} Kh7 {[%clk 00:32:53]} {[%emt 00:00:11]} 45. Rgg8
{[%clk 00:28:35]} {[%emt 00:00:22]} Qg1+ {[%clk 00:33:04]} {[%emt 00:00:21]} 46.
Kg3 {[%clk 00:29:03]} {[%emt 00:00:02]} Qcxg2+ {[%clk 00:33:19]} {[%emt
00:00:15]} 47. Kh4 {[%clk 00:29:31]} {[%emt 00:00:03]} Q1f2+ {[%clk 00:33:35]}
{[%emt 00:00:13]} 48. Kh5 {[%clk 00:29:54]} {[%emt 00:00:06]} Qxh3# {[%clk
00:33:54]} {[%emt 00:00:11]} 0-1

[Event "NJSK 2022 Jeugd A"]
[Site "Almelo, Netherlands"]
[Date "2022.05.02"]
[Round "2.6"]
[White "Van Kuijk, Vadim"]
[Black "Boeren, Jurriaan"]
[Result "1-0"]
[TimeControl "90min/40moves + 30min + 30sec/move"]
[WhiteElo "1898"]
[BlackElo "1778"]

1. e4 {[%clk 01:30:57]} {[%emt 00:00:02]} e5 {[%clk 01:30:45]} {[%emt
00:00:16]} 2. Nf3 {[%clk 01:31:21]} {[%emt 00:00:05]} Nc6 {[%clk 01:31:12]}
{[%emt 00:00:03]} 3. Bb5 {[%clk 01:31:43]} {[%emt 00:00:07]} a6 {[%clk
01:31:39]} {[%emt 00:00:04]} 4. Ba4 {[%clk 01:32:08]} {[%emt 00:00:05]} Nf6
{[%clk 01:32:05]} {[%emt 00:00:04]} 5. O-O {[%clk 01:32:32]} {[%emt 00:00:07]}
Be7 {[%clk 01:32:31]} {[%emt 00:00:04]} 6. Re1 {[%clk 01:32:57]} {[%emt
00:00:05]} b5 {[%clk 01:32:57]} {[%emt 00:00:04]} 7. Bb3 {[%clk 01:33:20]}
{[%emt 00:00:07]} d6 {[%clk 01:33:24]} {[%emt 00:00:03]} 8. c3 {[%clk
01:33:28]} {[%emt 00:00:22]} O-O {[%clk 01:33:46]} {[%emt 00:00:08]} 9. h3
{[%clk 01:33:45]} {[%emt 00:00:13]} Nb8 {[%clk 01:33:56]} {[%emt 00:00:21]} 10.
d4 {[%clk 01:33:25]} {[%emt 00:00:50]} Nbd7 {[%clk 01:34:15]} {[%emt 00:00:11]}
11. Nbd2 {[%clk 01:27:29]} {[%emt 00:06:25]} Bb7 {[%clk 01:34:26]} {[%emt
00:00:20]} 12. Bc2 {[%clk 01:26:51]} {[%emt 00:01:08]} Re8 {[%clk 01:34:45]}
{[%emt 00:00:10]} 13. Nf1 {[%clk 01:27:00]} {[%emt 00:00:21]} Bf8 {[%clk
01:35:02]} {[%emt 00:00:13]} 14. Ng3 {[%clk 01:26:52]} {[%emt 00:00:38]} g6
{[%clk 01:35:21]} {[%emt 00:00:11]} 15. a4 {[%clk 01:20:37]} {[%emt 00:06:45]}
c5 {[%clk 01:34:53]} {[%emt 00:00:58]} 16. d5 {[%clk 01:20:52]} {[%emt
00:00:15]} c4 {[%clk 01:35:17]} {[%emt 00:00:06]} 17. Bg5 {[%clk 01:19:57]}
{[%emt 00:01:25]} Nc5 {[%clk 01:35:11]} {[%emt 00:00:37]} 18. Qd2 {[%clk
01:19:37]} {[%emt 00:00:50]} Be7 {[%clk 01:35:27]} {[%emt 00:00:14]} 19. Bh6
{[%clk 01:13:00]} {[%emt 00:07:06]} Nfd7 {[%clk 01:33:46]} {[%emt 00:02:12]} 20.
h4 {[%clk 01:05:29]} {[%emt 00:08:01]} Nb6 {[%clk 01:06:47]} {[%emt 00:27:28]}
21. a5 {[%clk 00:34:43]} {[%emt 00:31:16]} Nbd7 {[%clk 00:53:33]} {[%emt
00:13:44]} 22. h5 {[%clk 00:25:17]} {[%emt 00:09:56]} Bc8 {[%clk 00:45:38]}
{[%emt 00:08:26]} 23. hxg6 {[%clk 00:23:03]} {[%emt 00:02:44]} fxg6 {[%clk
00:45:20]} {[%emt 00:00:49]} 24. Nh2 {[%clk 00:22:54]} {[%emt 00:00:39]} Nf6
{[%clk 00:36:23]} {[%emt 00:09:26]} 25. f4 {[%clk 00:21:26]} {[%emt 00:01:58]}
exf4 {[%clk 00:35:48]} {[%emt 00:01:06]} 26. Qxf4 {[%clk 00:21:13]} {[%emt
00:00:42]} Bf8 {[%clk 00:35:12]} {[%emt 00:01:07]} 27. Bg5 {[%clk 00:18:08]}
{[%emt 00:03:34]} Be7 {[%clk 00:25:07]} {[%emt 00:10:35]} 28. Bh6 {[%clk
00:15:10]} {[%emt 00:03:28]} Bf8 {[%clk 00:21:18]} {[%emt 00:04:19]} 29. Rf1
{[%clk 00:11:43]} {[%emt 00:03:57]} Bxh6 {[%clk 00:19:33]} {[%emt 00:02:14]} 30.
Qxh6 {[%clk 00:11:27]} {[%emt 00:00:45]} Ra7 {[%clk 00:13:27]} {[%emt
00:06:37]} 31. Rf4 {[%clk 00:10:04]} {[%emt 00:01:53]} Rf7 {[%clk 00:11:05]}
{[%emt 00:02:52]} 32. Raf1 {[%clk 00:10:12]} {[%emt 00:00:22]} Ref8 {[%clk
00:10:15]} {[%emt 00:01:20]} 33. Qg5 {[%clk 00:08:11]} {[%emt 00:02:30]} Kh8
{[%clk 00:08:00]} {[%emt 00:02:45]} 34. e5 {[%clk 00:06:02]} {[%emt 00:02:39]}
dxe5 {[%clk 00:07:28]} {[%emt 00:01:03]} 35. Qxe5 {[%clk 00:06:29]} {[%emt
00:00:03]} Kg8 {[%clk 00:06:48]} {[%emt 00:01:09]} 36. d6 {[%clk 00:04:11]}
{[%emt 00:02:48]} Nfd7 {[%clk 00:06:29]} {[%emt 00:00:49]} 37. Qd5 {[%clk
00:03:44]} {[%emt 00:00:57]} Bb7 {[%clk 00:03:39]} {[%emt 00:03:21]} 38. Qxf7+
{[%clk 00:04:05]} {[%emt 00:00:08]} Rxf7 {[%clk 00:04:03]} {[%emt 00:00:06]} 39.
Rxf7 {[%clk 00:04:33]} {[%emt 00:00:02]} Qg5 {[%clk 00:04:19]} {[%emt
00:00:14]} 40. Be4 {[%clk 00:01:07]} {[%emt 00:03:56]} Bxe4 {[%clk 00:03:11]}
{[%emt 00:01:38]} 41. Rxd7 {[%clk 00:26:55]} {[%emt 00:04:41]} Bxg2 {[%clk
00:14:34]} {[%emt 00:19:07]} 42. Kxg2 {[%clk 00:24:56]} {[%emt 00:02:29]} Nxd7
{[%clk 00:14:45]} {[%emt 00:00:19]} 43. Rd1 {[%clk 00:24:57]} {[%emt 00:00:29]}
h5 {[%clk 00:12:59]} {[%emt 00:02:16]} 44. Nf3 {[%clk 00:25:13]} {[%emt
00:00:14]} Qf4 {[%clk 00:12:21]} {[%emt 00:01:08]} 45. Rd4 {[%clk 00:25:16]}
{[%emt 00:00:26]} Qc1 {[%clk 00:11:54]} {[%emt 00:00:58]} 46. Re4 {[%clk
00:17:21]} {[%emt 00:08:26]} Qxb2+ {[%clk 00:11:21]} {[%emt 00:01:02]} 47. Re2
{[%clk 00:17:42]} {[%emt 00:00:08]} Qxc3 {[%clk 00:06:30]} {[%emt 00:05:22]} 48.
Re8+ {[%clk 00:18:07]} {[%emt 00:00:05]} Kf7 {[%clk 00:06:55]} {[%emt
00:00:05]} 49. Re7+ {[%clk 00:18:31]} {[%emt 00:00:05]} Kf8 {[%clk 00:07:21]}
{[%emt 00:00:04]} 50. Rxd7 {[%clk 00:18:20]} {[%emt 00:00:42]} Qb2+ {[%clk
00:06:56]} {[%emt 00:00:55]} 51. Kh3 {[%clk 00:18:29]} {[%emt 00:00:20]} Qf6
{[%clk 00:07:08]} {[%emt 00:00:18]} 52. Ra7 {[%clk 00:13:59]} {[%emt 00:05:01]}
Qxd6 {[%clk 00:05:20]} {[%emt 00:02:18]} 53. Ng5 {[%clk 00:14:15]} {[%emt
00:00:13]} b4 {[%clk 00:03:03]} {[%emt 00:02:47]} 54. N3e4 {[%clk 00:14:20]}
{[%emt 00:00:24]} Qd3+ {[%clk 00:03:05]} {[%emt 00:00:28]} 55. Kh4 {[%clk
00:14:29]} {[%emt 00:00:22]} Qf1 {[%clk 00:01:21]} {[%emt 00:02:14]} 56. Ne6+
{[%clk 00:13:29]} {[%emt 00:01:30]} Kg8 {[%clk 00:01:40]} {[%emt 00:00:11]} 57.
Ra8+ {[%clk 00:13:53]} {[%emt 00:00:06]} Kf7 {[%clk 00:01:23]} {[%emt
00:00:47]} 58. Rf8+ {[%clk 00:14:01]} {[%emt 00:00:22]} Kxe6 {[%clk 00:01:49]}
{[%emt 00:00:05]} 59. Rxf1 {[%clk 00:13:23]} {[%emt 00:01:08]} Kd5 {[%clk
00:01:49]} {[%emt 00:00:30]} 60. Rc1 {[%clk 00:10:26]} {[%emt 00:03:26]} b3
{[%clk 00:00:47]} {[%emt 00:01:32]} 61. Nd2 {[%clk 00:10:14]} {[%emt 00:00:42]}
b2 {[%clk 00:00:33]} {[%emt 00:00:44]} 62. Rc2 {[%clk 00:10:41]} {[%emt
00:00:03]} Kd4 {[%clk 00:00:48]} {[%emt 00:00:16]} 63. Nb1 {[%clk 00:09:19]}
{[%emt 00:01:52]} Kd5 {[%emt 00:00:47]} 1-0

[Event "NJSK 2022 Jeugd A"]
[Site "Almelo, Netherlands"]
[Date "2022.05.02"]
[Round "2.7"]
[White "Visser, Berend"]
[Black "Bakker, Tycho"]
[Result "0-1"]
[TimeControl "90min/40moves + 30min + 30sec/move"]
[WhiteElo "1763"]
[BlackElo "1857"]

1. d4 {[%clk 01:30:58]} {[%emt 00:00:01]} Nf6 {[%clk 01:30:55]} {[%emt
00:00:05]} 2. c4 {[%clk 01:31:24]} {[%emt 00:00:04]} e6 {[%clk 01:31:22]}
{[%emt 00:00:04]} 3. Nc3 {[%clk 01:31:50]} {[%emt 00:00:04]} Bb4 {[%emt
00:00:14]} 4. Bg5 {[%clk 01:31:41]} {[%emt 00:00:28]} h6 {[%clk 01:31:06]}
{[%emt 00:01:12]} 5. Bh4 {[%clk 01:32:05]} {[%emt 00:00:06]} c5 {[%clk
01:24:23]} {[%emt 00:07:13]} 6. Qb3 {[%clk 01:17:43]} {[%emt 00:14:52]} Nc6
{[%clk 01:23:26]} {[%emt 00:01:27]} 7. dxc5 {[%clk 01:13:34]} {[%emt 00:04:39]}
Nd4 {[%clk 01:19:08]} {[%emt 00:04:49]} 8. Qd1 {[%clk 01:13:49]} {[%emt
00:00:15]} Nf5 {[%clk 01:19:28]} {[%emt 00:00:09]} 9. Bg3 {[%clk 01:12:49]}
{[%emt 00:01:30]} Nxg3 {[%clk 01:15:59]} {[%emt 00:03:58]} 10. hxg3 {[%clk
01:13:12]} {[%emt 00:00:07]} Ne4 {[%clk 01:12:11]} {[%emt 00:04:18]} 11. Qc2
{[%clk 01:09:09]} {[%emt 00:04:32]} Qf6 {[%clk 01:11:59]} {[%emt 00:00:42]} 12.
Qxe4 {[%clk 00:55:21]} {[%emt 00:14:18]} Bxc3+ {[%clk 01:12:12]} {[%emt
00:00:17]} 13. Kd1 {[%clk 00:55:48]} {[%emt 00:00:04]} Bxb2 {[%clk 01:10:24]}
{[%emt 00:02:18]} 14. Rb1 {[%clk 00:55:48]} {[%emt 00:00:30]} Qd4+ {[%clk
01:09:04]} {[%emt 00:01:50]} 15. Qxd4 {[%clk 00:55:05]} {[%emt 00:01:13]} Bxd4
{[%clk 01:09:19]} {[%emt 00:00:15]} 16. e3 {[%clk 00:55:34]} {[%emt 00:00:01]}
Bxc5 {[%clk 01:09:36]} {[%emt 00:00:13]} 17. Nf3 {[%clk 00:55:19]} {[%emt
00:00:45]} b6 {[%clk 01:08:48]} {[%emt 00:01:18]} 18. Be2 {[%clk 00:54:20]}
{[%emt 00:01:29]} Bb7 {[%clk 01:08:28]} {[%emt 00:00:49]} 19. Ke1 {[%clk
00:54:00]} {[%emt 00:00:50]} Ke7 {[%clk 01:08:26]} {[%emt 00:00:33]} 20. Rd1
{[%clk 00:53:50]} {[%emt 00:00:40]} Rac8 {[%clk 01:08:29]} {[%emt 00:00:27]} 21.
Kf1 {[%clk 00:53:08]} {[%emt 00:01:12]} Rc7 {[%clk 01:06:44]} {[%emt 00:02:15]}
22. Ne5 {[%clk 00:51:03]} {[%emt 00:02:36]} Rhc8 {[%clk 01:06:41]} {[%emt
00:00:33]} 23. Nd3 {[%clk 00:49:14]} {[%emt 00:02:19]} Ba6 {[%clk 01:04:55]}
{[%emt 00:02:17]} 24. Ne5 {[%clk 00:32:59]} {[%emt 00:16:45]} d6 {[%clk
01:01:13]} {[%emt 00:04:11]} 25. Nf3 {[%clk 00:32:49]} {[%emt 00:00:40]} Bb4
{[%clk 01:01:30]} {[%emt 00:00:14]} 26. Nd2 {[%clk 00:32:14]} {[%emt 00:01:05]}
Bxd2 {[%clk 01:01:38]} {[%emt 00:00:20]} 27. Rxd2 {[%clk 00:32:40]} {[%emt
00:00:05]} Bxc4 {[%clk 01:02:01]} {[%emt 00:00:07]} 28. Bxc4 {[%clk 00:32:32]}
{[%emt 00:00:38]} Rxc4 {[%clk 01:02:26]} {[%emt 00:00:05]} 29. Rh4 {[%clk
00:32:22]} {[%emt 00:00:41]} d5 {[%clk 00:59:32]} {[%emt 00:03:24]} 30. Ke2
{[%clk 00:30:32]} {[%emt 00:02:20]} Rxh4 {[%clk 00:59:32]} {[%emt 00:00:30]} 31.
gxh4 {[%clk 00:30:52]} {[%emt 00:00:10]} Rc4 {[%clk 00:59:58]} {[%emt
00:00:02]} 32. g3 {[%clk 00:31:11]} {[%emt 00:00:13]} Kd6 {[%clk 01:00:17]}
{[%emt 00:00:11]} 33. Kd3 {[%clk 00:31:23]} {[%emt 00:00:18]} Kc5 {[%clk
01:00:34]} {[%emt 00:00:13]} 34. Rb2 {[%clk 00:30:49]} {[%emt 00:01:04]} b5
{[%clk 00:59:39]} {[%emt 00:01:25]} 35. Rb3 {[%clk 00:31:06]} {[%emt 00:00:13]}
a5 {[%clk 00:59:32]} {[%emt 00:00:36]} 36. Rb2 {[%clk 00:30:34]} {[%emt
00:01:03]} b4 {[%clk 00:59:16]} {[%emt 00:00:46]} 37. a4 {[%clk 00:28:32]}
{[%emt 00:02:32]} Rc3+ {[%clk 00:56:12]} {[%emt 00:03:34]} 38. Kd2 {[%clk
00:28:17]} {[%emt 00:00:45]} Kc4 {[%clk 00:56:32]} {[%emt 00:00:09]} 39. Ra2
{[%clk 00:27:28]} {[%emt 00:01:20]} b3 {[%clk 00:56:44]} {[%emt 00:00:18]} 40.
Ra3 {[%clk 00:27:51]} {[%emt 00:00:07]} Rc2+ {[%clk 00:56:44]} {[%emt
00:00:29]} 41. Kd1 {[%clk 00:27:47]} {[%emt 00:00:34]} Ra2 {[%clk 00:57:05]}
{[%emt 00:00:09]} 0-1